fUST/lending_fUST_20240907
["ID","MTS","AMOUNT","RATE_DAILY","PERIOD"]
[337421118,1725658298006,-151.0,0.00032877,14]
[337421119,1725658298016,-151.0,0.00032877,14]
[337421120,1725658298026,-202.59838,0.00032877,14]
[337421121,1725658298039,-23236.7623462,0.00032877,2]
[337421122,1725658298049,-388.55000519,0.00032877,2]
[337421123,1725658298059,-1200.0,0.00032878,7]
[337421124,1725658298069,-155.45728661,0.0003288,7]
[337421125,1725658298079,-155.45728661,0.0003288,7]
[337421126,1725658298088,-155.45728661,0.0003288,7]
[337421127,1725658298098,-155.45728661,0.0003288,7]
[337421128,1725658298107,-155.45728661,0.0003288,7]
[337421129,1725658298118,-155.45728661,0.0003288,7]
[337421130,1725658298129,-155.45728661,0.0003288,7]
[337421131,1725658298139,-155.45728661,0.0003288,7]
[337421132,1725658298149,-155.45728661,0.0003288,7]
[337421133,1725658298159,-155.95,0.0003288,7]
[337421134,1725658298168,-310.98957322,0.0003288,7]
[337421135,1725658298179,-310.98957322,0.0003288,7]
[337421136,1725658298192,-310.98957322,0.0003288,7]
[337421137,1725658298205,-310.98957322,0.0003288,7]
[337421138,1725658298215,-310.98957322,0.0003288,7]
[337421139,1725658298228,-310.98957322,0.0003288,7]
[337421140,1725658298240,-310.98957322,0.0003288,7]
[337421141,1725658298250,-310.98957322,0.0003288,7]
[337421142,1725658298262,-310.98957322,0.0003288,7]
[337421143,1725658298394,-310.98957322,0.0003288,7]
[337421144,1725658298407,-310.98957322,0.0003288,7]
[337421145,1725658298416,-310.98957322,0.0003288,7]
[337421146,1725658298425,-310.98957322,0.0003288,7]
[337421147,1725658298435,-310.98957322,0.0003288,7]
[337421148,1725658298445,-310.98957322,0.0003288,7]
[337421149,1725658298456,-310.98957322,0.0003288,7]
[337421150,1725658298466,-310.98957322,0.0003288,7]
[337421151,1725658298476,-310.98957322,0.0003288,7]
[337421152,1725658298486,-310.98957322,0.0003288,7]
[337421153,1725658298497,-311.48,0.0003288,7]
[337421154,1725658298507,-152.45505353,0.0003288,7]
[337421155,1725658298517,-152.45505353,0.0003288,7]
[337421156,1725658298526,-152.45505353,0.0003288,7]
[337421157,1725658298542,-152.45505353,0.0003288,7]
[337421158,1725658298551,-152.45505353,0.0003288,7]
[337421159,1725658298561,-152.45505353,0.0003288,7]
[337421160,1725658298572,-152.45505353,0.0003288,7]
[337421161,1725658298582,-152.45505353,0.0003288,7]
[337421162,1725658298592,-152.45505353,0.0003288,7]
[337421163,1725658298602,-152.45505353,0.0003288,7]
[337421164,1725658298612,-152.95,0.0003288,7]
[337421165,1725658298621,-335.47611778,0.0003288,7]
[337421166,1725658298631,-335.47611778,0.0003288,7]
[337421167,1725658298640,-335.47611778,0.0003288,7]
[337421168,1725658298650,-335.47611778,0.0003288,7]
[337421169,1725658298662,-335.47611778,0.0003288,7]
[337421170,1725658298671,-335.47611778,0.0003288,7]
[337421171,1725658298680,-335.47611778,0.0003288,7]
[337421172,1725658298691,-335.47611778,0.0003288,7]
[337421173,1725658298701,-335.47611778,0.0003288,7]
[337421174,1725658298711,-335.47611778,0.0003288,7]
[337421175,1725658298721,-335.47611778,0.0003288,7]
[337421176,1725658298732,-335.47611778,0.0003288,7]
[337421177,1725658298744,-335.47611778,0.0003288,7]
[337421178,1725658298754,-335.47611778,0.0003288,7]
[337421179,1725658298764,-335.47611778,0.0003288,7]
[337421180,1725658298774,-335.47611778,0.0003288,7]
[337421181,1725658298784,-335.47611778,0.0003288,7]
[337421182,1725658298797,-335.47611778,0.0003288,7]
[337421183,1725658298807,-335.47611778,0.0003288,7]
[337421184,1725658298818,-335.97,0.0003288,7]
[337421185,1725658298828,-1100.0,0.00032902,7]
[337421186,1725658298838,-500.0,0.00032996,7]
[337421187,1725658298848,-1000.0,0.00033,2]
[337421188,1725658298859,-248.44884674,0.00033,2]
[337421189,1725658298869,-1000.0,0.00033,2]
[337421190,1725658298878,-262.0,0.00033,2]
[337421191,1725658298888,-262.0,0.00033,2]
[337421192,1725658298897,-362.81746616,0.00033021,2]
[337421193,1725658298907,-1200.0,0.0003303,7]
[337421194,1725658298916,-362.051587,0.00033034,2]
[337421195,1725658298927,-500.0,0.00033037,7]
[337421196,1725658298937,-1200.0,0.00033049,7]
[337421197,1725658298946,-1100.0,0.00033089,7]
[337421198,1725658298955,-1100.0,0.00033142,7]
[337421199,1725658298965,-414.787129,0.00033197,2]
[337421200,1725658298975,-1200.0,0.00033302,7]
[337421201,1725658298984,-1700.0,0.00033318,7]
[337421202,1725658298994,-151.0,0.00033342,120]
[337421203,1725658299003,-1200.0,0.00033355,7]
[337421204,1725658299014,-100768.9435081,0.00033369,7]
[337421205,1725658299024,-300.0,0.00033499,2]
[337421206,1725658299038,-200.0,0.000335,8]
[337421207,1725658299048,-7000.0,0.000335,30]
[337421208,1725658299059,-176.13601,0.000335,2]
[337421209,1725658299068,-288.24,0.00033538,30]
[337421210,1725658299078,-271.97469052,0.00033538,2]
[337421211,1725658299087,-10071.90936015,0.00033539,2]
[337421212,1725658299097,-9809.34333834,0.00033539,2]
[337421213,1725658299106,-18960.94227342,0.00033539,2]
[337421214,1725658299116,-12904.3736099,0.00033539,2]
[337421215,1725658299125,-1513.50713139,0.00033539,2]
[337421216,1725658299134,-3050.72561301,0.00033539,2]
[337421217,1725658299144,-10030.21190394,0.00033539,2]
[337421218,1725658299155,-153446.11971406,0.00033539,2]
[337421219,1725658299164,-17960.33040231,0.00033539,2]
[337421220,1725658299173,-1519.13523363,0.00033539,2]
[337421221,1725658299184,-2369.92528494,0.00033539,2]
[337421222,1725658299194,-4041.47299074,0.00033539,2]
[337421223,1725658299204,-153.97683725,0.00033539,2]
[337421224,1725658299214,-436.25962464,0.00033539,2]
[337421225,1725658299224,-222.84188622,0.00033539,2]
[337421226,1725658299233,-457.58950588,0.00033539,2]
[337421227,1725658299243,-300.0,0.00033539,2]
[337421228,1725658299253,-791.48606759,0.00033539,2]
[337421229,1725658299263,-512.96991364,0.00033539,2]
[337421230,1725658299273,-290.34332864,0.00033539,2]
[337421231,1725658299283,-319.66195893,0.00033539,2]
[337421232,1725658299297,-285.22325752,0.00033539,2]
[337421233,1725658299307,-514.0377194,0.00033539,2]
[337421234,1725658299316,-3015.13892099,0.00033539,2]
[337421235,1725658299326,-89047.75292707,0.00033539,2]
[337421236,1725658299335,-6432.64773816,0.00033539,2]
[337421237,1725658299345,-4140.78789375,0.00033539,2]
[337421238,1725658299355,-1182.3745726,0.00033539,2]
[337421239,1725658299368,-4111.70559055,0.00033539,2]
[337421240,1725658299378,-1123.51369718,0.00033539,2]
[337421241,1725658299388,-16086.08829874,0.00033539,2]
[337421242,1725658299398,-1016.34458763,0.00033539,2]
[337421243,1725658299407,-902.6972918,0.00033539,2]
[337421244,1725658299417,-200.7690514,0.00033539,2]
[337421245,1725658299427,-150.0,0.00033539,14]
[337421246,1725658299437,-150.0,0.00033539,14]
[337421247,1725658299449,-200.0,0.00033539,14]
[337421248,1725658299459,-83043.66142193,0.00033539,4]
[337421249,1725658299469,-534.39547281,0.00033539,14]
[337421250,1725658299479,-500.0,0.00033539,5]
[337421251,1725658299489,-29384.57055953,0.00033539,7]
[337421252,1725658299498,-273.35415456,0.00033539,7]
[337421253,1725658299507,-2107.0,0.00033555,30]
[337421254,1725658299518,-500.0,0.00033568,7]
[337421255,1725658299528,-500.0,0.00033574,12]
[337421256,1725658299541,-241.67,0.00033575,2]
[337421257,1725658299552,-500.0,0.00033578,12]
[337421258,1725658299561,-2100.0,0.00033679,7]
[337421259,1725658299571,-900.0,0.00033692,7]
[337421260,1725658299582,-900.0,0.00033695,7]
[337421261,1725658299592,-500.0,0.00033698,7]
[337421262,1725658299602,-306.0,0.00033708,2]
[337421263,1725658299612,-1500.0,0.0003377,7]
[337421264,1725658299621,-1200.0,0.00033796,7]
[337421265,1725658299631,-2300.0,0.00033875,7]
[337421266,1725658299641,-1999.0,0.00033886,2]
[337421267,1725658299652,-163.438529,0.00034399,2]
[337421268,1725658299662,-615.83718789,0.00034521,120]
[337421269,1725658299671,-523.0,0.00034698,2]
[337421270,1725658299681,-1000.0,0.000348,3]
[337421271,1725658299691,-1000.0,0.000348,3]
[337421272,1725658299700,-1000.0,0.000348,3]
[337421273,1725658299710,-151.0,0.00034861,2]
[337421274,1725658299720,-160.0,0.00034989,3]
[337421275,1725658299729,-68835.90531677,0.00034999,3]
[337421276,1725658299739,-10406.67143733,0.00035,2]
[337421277,1725658299749,-824.81830766,0.00035,7]
[337421278,1725658299759,-151.0,0.00035014,120]
[337421279,1725658299768,-151.0,0.00035205,120]
[337421280,1725658299777,-339.3,0.000353,14]
[337421281,1725658299789,-339.1717018,0.00035408,2]
[337421282,1725658299798,-263.17607839,0.00035616,120]
[337421283,1725658299807,-530.719593,0.00035616,120]
[337421284,1725658299817,-96320.38,0.00035616,3]
[337421285,1725658299827,-160.0,0.00035708,4]
[337421286,1725658299837,-262.0,0.00036,2]
[337421287,1725658299846,-262.0,0.00036,2]
[337421288,1725658299855,-262.0,0.00036,2]
[337421289,1725658299864,-286.0,0.00036164,2]
[337421290,1725658299874,-258.64159142,0.0003624,2]
[337421291,1725658299883,-160.0,0.00036427,5]
[337421292,1725658299894,-151.0,0.00036685,120]
[337421293,1725658299903,-160.0,0.00037146,6]
[337421294,1725658299913,-523.0,0.00037698,2]
[337421295,1725658299922,-151.0,0.00037808,120]
[337421296,1725658299932,-160.0,0.00037864,7]
[337421297,1725658299941,-1000.0,0.00038,2]
[337421298,1725658299951,-151.0,0.00038356,120]
[337421299,1725658299960,-466.95,0.000385,14]
[337421300,1725658299971,-339.3,0.000385,14]
[337421301,1725658299980,-160.0,0.00038583,8]
[337421302,1725658299990,-442.7816812,0.00038629,2]
[337421303,1725658300000,-415.615056,0.00038629,2]
[337421304,1725658300010,-27530.18433553,0.00039,2]
[337421305,1725658300021,-262.0,0.00039,2]
[337421306,1725658300029,-262.0,0.00039,2]
[337421307,1725658300049,-262.0,0.00039,2]
[337421308,1725658300058,-153.0,0.00039177,2]
[337421309,1725658300068,-153.0,0.00039177,2]
[337421310,1725658300078,-153.0,0.00039177,2]
[337421311,1725658300088,-160.0,0.00039302,9]
[337421312,1725658300098,-414.787129,0.00039302,2]
[337421313,1725658300108,-637.82636299,0.00039999,31]
[337421314,1725658300118,-209.21809992,0.00039999,31]
[337421315,1725658300128,-500.0,0.00039999,31]
[337421316,1725658300138,-416.61009002,0.00039999,31]
[337421317,1725658300148,-500.0,0.00039999,31]
[337421318,1725658300158,-500.0,0.00039999,31]
[337421319,1725658300260,-476.92031185,0.00039999,31]
[337421320,1725658300281,-491.68611945,0.00039999,31]
[337421321,1725658300297,-500.0,0.00039999,31]
[337421322,1725658300306,-500.0,0.00039999,31]
[337421323,1725658300316,-389.3527521,0.00039999,31]
[337421324,1725658300326,-500.0,0.00039999,31]
[337421325,1725658300336,-500.0,0.00039999,31]
[337421326,1725658300345,-312.38773656,0.00039999,31]
[337421327,1725658300354,-500.0,0.00039999,31]
[337421328,1725658300364,-236.84995145,0.00039999,31]
[337421329,1725658300378,-420.46604688,0.00039999,7]
[337421330,1725658300387,-500.0,0.00039999,7]
[337421331,1725658300397,-500.0,0.00039999,31]
[337421332,1725658300408,-500.0,0.00039999,31]
[337421333,1725658300418,-401.94744367,0.00039999,31]
[337421334,1725658300428,-201.04483377,0.00039999,31]
[337421335,1725658300438,-500.0,0.00039999,31]
[337421336,1725658300449,-500.0,0.00039999,31]
[337421337,1725658300460,-500.0,0.00039999,31]
[337421338,1725658300471,-500.0,0.00039999,31]
[337421339,1725658300481,-450.0,0.00039999,31]
[337421340,1725658300491,-4852.75632063,0.0004,2]
[337421341,1725658300501,-2724.3,0.0004,14]
[337421342,1725658300511,-151.98009108,0.0004,120]
[337421343,1725658300521,-10000.0,0.0004,35]
[337421344,1725658300530,-503.79102748,0.0004,5]
[337421345,1725658300549,-160.0,0.00040021,10]
[337421346,1725658300559,-151.0,0.00040027,120]
[337421347,1725658300570,-504.19321572,0.000404,5]
[337421348,1725658300579,-151.0,0.00040411,120]
[337421349,1725658300590,-220.32626321,0.00040411,60]
[337421350,1725658300600,-220.32626321,0.00040575,60]
[337421351,1725658300609,-501.402,0.00040698,2]
[337421352,1725658300618,-160.0,0.00040739,11]
[337421353,1725658300628,-220.32626321,0.0004074,60]
[337421354,1725658300638,-220.32626321,0.00040932,60]
[337421355,1725658300647,-446.0,0.00041,14]
[337421356,1725658300657,-486.34659979,0.00041095,120]
[337421357,1725658300667,-425.16177292,0.00041095,120]
[337421358,1725658300678,-150.0,0.00041096,10]
[337421359,1725658300688,-220.32626321,0.00041096,60]
[337421360,1725658300698,-179.8938486,0.00041096,2]
[337421361,1725658300708,-220.32626321,0.0004126,60]
[337421362,1725658300718,-446.0,0.0004137,90]
[337421363,1725658300727,-220.32626321,0.00041425,60]
[337421364,1725658300738,-160.0,0.00041458,12]
[337421365,1725658300748,-282.28299976,0.00041458,5]
[337421366,1725658300758,-530.719593,0.00041553,120]
[337421367,1725658300767,-220.32626321,0.00041616,60]
[337421368,1725658300777,-151.0,0.00041699,120]
[337421369,1725658300790,-220.32626321,0.00041781,60]
[337421370,1725658300800,-321.0,0.00041918,120]
[337421371,1725658300809,-321.0,0.00041918,120]
[337421372,1725658300818,-321.0,0.00041918,120]
[337421373,1725658300828,-321.0,0.00041918,120]
[337421374,1725658300838,-321.0,0.00041918,120]
[337421375,1725658300847,-321.0,0.00041918,120]
[337421376,1725658300857,-321.0,0.00041918,120]
[337421377,1725658300867,-321.0,0.00041918,120]
[337421378,1725658300877,-321.0,0.00041918,120]
[337421379,1725658300886,-321.0,0.00041918,120]
[337421380,1725658300896,-321.0,0.00041918,120]
[337421381,1725658300905,-321.0,0.00041918,120]
[337421382,1725658300915,-321.0,0.00041918,120]
[337421383,1725658300925,-321.0,0.00041918,120]
[337421384,1725658300935,-321.0,0.00041918,120]
[337421385,1725658300945,-321.0,0.00041918,120]
[337421386,1725658300954,-321.0,0.00041918,120]
[337421387,1725658300965,-321.0,0.00041918,120]
[337421388,1725658300976,-321.0,0.00041918,120]
[337421389,1725658300985,-321.0,0.00041918,120]
[337421390,1725658300995,-321.0,0.00041918,120]
[337421391,1725658301005,-321.0,0.00041918,120]
[337421392,1725658301014,-321.0,0.00041918,120]
[337421393,1725658301025,-321.0,0.00041918,120]
[337421394,1725658301036,-321.0,0.00041918,120]
[337421395,1725658301050,-321.0,0.00041918,120]
[337421396,1725658301059,-321.0,0.00041918,120]
[337421397,1725658301069,-153.0,0.00041918,120]
[337421398,1725658301080,-321.0,0.00041918,120]
[337421399,1725658301089,-321.0,0.00041918,120]
[337421400,1725658301099,-321.0,0.00041918,120]
[337421401,1725658301109,-321.0,0.00041918,120]
[337421402,1725658301118,-321.0,0.00041918,120]
[337421403,1725658301127,-321.0,0.00041918,120]
[337421404,1725658301136,-321.0,0.00041918,120]
[337421405,1725658301146,-321.0,0.00041918,120]
[337421406,1725658301156,-321.0,0.00041918,120]
[337421407,1725658301166,-321.0,0.00041918,120]
[337421408,1725658301175,-321.0,0.00041918,120]
[337421409,1725658301185,-321.0,0.00041918,120]
[337421410,1725658301194,-321.0,0.00041918,120]
[337421411,1725658301203,-321.0,0.00041918,120]
[337421412,1725658301213,-153.0,0.00041918,120]
[337421413,1725658301222,-321.0,0.00041918,120]
[337421414,1725658301231,-321.0,0.00041918,120]
[337421415,1725658301241,-321.0,0.00041918,120]
[337421416,1725658301250,-321.0,0.00041918,120]
[337421417,1725658301259,-321.0,0.00041918,120]
[337421418,1725658301268,-321.0,0.00041918,120]
[337421419,1725658301279,-321.0,0.00041918,120]
[337421420,1725658301293,-321.0,0.00041918,120]
[337421421,1725658301302,-321.0,0.00041918,120]
[337421422,1725658301312,-321.0,0.00041918,120]
[337421423,1725658301322,-321.0,0.00041918,120]
[337421424,1725658301333,-321.0,0.00041918,120]
[337421425,1725658301343,-321.0,0.00041918,120]
[337421426,1725658301353,-321.0,0.00041918,120]
[337421427,1725658301364,-153.0,0.00041918,120]
[337421428,1725658301376,-321.0,0.00041918,120]
[337421429,1725658301386,-321.0,0.00041918,120]
[337421430,1725658301395,-321.0,0.00041918,120]
[337421431,1725658301405,-321.0,0.00041918,120]
[337421432,1725658301416,-321.0,0.00041918,120]
[337421433,1725658301426,-321.0,0.00041918,120]
[337421434,1725658301435,-321.0,0.00041918,120]
[337421435,1725658301445,-321.0,0.00041918,120]
[337421436,1725658301455,-321.0,0.00041918,120]
[337421437,1725658301465,-321.0,0.00041918,120]
[337421438,1725658301474,-321.0,0.00041918,120]
[337421439,1725658301485,-321.0,0.00041918,120]
[337421440,1725658301493,-321.0,0.00041918,120]
[337421441,1725658301502,-321.0,0.00041918,120]
[337421442,1725658301511,-153.0,0.00041918,120]
[337421443,1725658301521,-321.0,0.00041918,120]
[337421444,1725658301531,-321.0,0.00041918,120]
[337421445,1725658301544,-321.0,0.00041918,120]
[337421446,1725658301554,-321.0,0.00041918,120]
[337421447,1725658301564,-321.0,0.00041918,120]
[337421448,1725658301575,-321.0,0.00041918,120]
[337421449,1725658301585,-321.0,0.00041918,120]
[337421450,1725658301594,-321.0,0.00041918,120]
[337421451,1725658301604,-220.32626321,0.00041945,60]
[337421452,1725658301614,-262.0,0.00042,2]
[337421453,1725658301624,-262.0,0.00042,2]
[337421454,1725658301633,-262.0,0.00042,2]
[337421455,1725658301642,-220.32626321,0.0004211,60]
[337421456,1725658301652,-220.32626321,0.00042301,60]
[337421457,1725658301662,-220.32626321,0.00042466,60]
[337421458,1725658301671,-1000.0,0.000425,2]
[337421459,1725658301682,-10000.0,0.000425,40]
[337421460,1725658301692,-220.32626321,0.0004263,60]
[337421461,1725658301702,-220.32626321,0.00042795,60]
[337421462,1725658301712,-151.0,0.00043014,120]
[337421463,1725658301721,-446.0,0.00043151,90]
[337421464,1725658301731,-151.0,0.0004337,120]
[337421465,1725658301741,-263.81054255,0.00043576,5]
[337421466,1725658301751,-800.53486802,0.00043693,28]
[337421467,1725658301761,-200.0,0.00043804,120]
[337421468,1725658301770,-500.0,0.00043835,120]
[337421469,1725658301781,-500.0,0.00044109,120]
[337421470,1725658301794,-260.837414,0.000443,30]
[337421471,1725658301804,-500.0,0.00044383,120]
[337421472,1725658301815,-152.76035624,0.0004445,52]
[337421473,1725658301825,-241.99341645,0.00044657,120]
[337421474,1725658301835,-172.63034279,0.000447,120]
[337421475,1725658301844,-7452.53967844,0.00045,2]
[337421476,1725658301854,-285.0225991,0.00045,30]
[337421477,1725658301864,-800.0,0.00045,120]
[337421478,1725658301874,-262.0,0.00045,2]
[337421479,1725658301884,-262.0,0.00045,2]
[337421480,1725658301894,-151.0,0.00045041,120]
[337421481,1725658301903,-449.0,0.00045308,90]
[337421482,1725658302003,-414.787129,0.00045407,120]
[337421483,1725658302013,-151.0,0.00045616,120]
[337421484,1725658302024,-1006.00349025,0.00046,2]
[337421485,1725658302035,-339.3,0.00046,30]
[337421486,1725658302046,-163.32103747,0.00046,120]
[337421487,1725658302056,-800.0,0.00046,30]
[337421488,1725658302065,-6002.85538239,0.00046026,60]
[337421489,1725658302075,-1079.57684321,0.000462,60]
[337421490,1725658302085,-250.0,0.000463,30]
[337421491,1725658302096,-151.0,0.00046712,120]
[337421492,1725658302106,-200.0,0.00046739,120]
[337421493,1725658302115,-500.0,0.00046772,30]
[337421494,1725658302126,-215.54,0.00047,120]
[337421495,1725658302136,-530.719593,0.00047489,120]
[337421496,1725658302146,-499.999999,0.00048,120]
[337421497,1725658302156,-262.0,0.00048,2]
[337421498,1725658302165,-151.0,0.00048219,120]
[337421499,1725658302175,-250.0,0.000483,30]
[337421500,1725658302184,-446.0,0.00048329,90]
[337421501,1725658302194,-151.0,0.00048384,120]
[337421502,1725658302204,-1661.72303914,0.000488,120]
[337421503,1725658302213,-203.545633,0.00048915,30]
[337421504,1725658302222,-362.905688,0.00048915,30]
[337421505,1725658302231,-500.0,0.00049,28]
[337421506,1725658302241,-206.13490608,0.00049,10]
[337421507,1725658302250,-585.454,0.00049,120]
[337421508,1725658302260,-500.0,0.00049234,30]
[337421509,1725658302269,-500.0,0.00049315,2]
[337421510,1725658302278,-500.0,0.00049315,2]
[337421511,1725658302289,-500.0,0.00049315,2]
[337421512,1725658302298,-500.0,0.00049315,2]
[337421513,1725658302307,-500.0,0.00049315,2]
[337421514,1725658302316,-500.0,0.00049315,2]
[337421515,1725658302326,-500.0,0.00049315,2]
[337421516,1725658302334,-500.0,0.00049315,2]
[337421517,1725658302343,-500.0,0.00049315,2]
[337421518,1725658302353,-621.98085874,0.00049315,2]
[337421519,1725658302363,-503.60684187,0.00049315,2]
[337421520,1725658302375,-568.19761952,0.00049315,31]
[337421521,1725658302385,-203.545633,0.00049526,30]
[337421522,1725658302394,-362.905688,0.00049526,30]
[337421523,1725658302403,-163.438529,0.0004962,2]
[337421524,1725658302414,-1013.90424897,0.0005,2]
[337421525,1725658302423,-11790.0,0.0005,2]
[337421526,1725658302432,-1111.284,0.0005,2]
[337421527,1725658302441,-515.0,0.0005,31]
[337421528,1725658302452,-1000.0,0.0005,120]
[337421529,1725658302461,-1000.0,0.0005,120]
[337421530,1725658302471,-1000.0,0.0005,120]
[337421531,1725658302480,-1000.0,0.0005,120]
[337421532,1725658302489,-1000.0,0.0005,120]
[337421533,1725658302499,-1000.0,0.0005,120]
[337421534,1725658302508,-1014.0,0.0005,120]
[337421535,1725658302517,-193.95937055,0.0005,30]
[337421536,1725658302526,-212.98169491,0.0005,20]
[337421537,1725658302535,-244.51367201,0.0005,120]
[337421538,1725658302545,-521.58319482,0.0005,10]
[337421539,1725658302554,-151.0,0.00050055,120]
[337421540,1725658302563,-203.545633,0.00050138,30]
[337421541,1725658302572,-362.905688,0.00050138,30]
[337421542,1725658302583,-250.0,0.000503,30]
[337421543,1725658302593,-234.899999,0.000505,37]
[337421544,1725658302603,-466.95,0.000505,30]
[337421545,1725658302612,-203.545633,0.00050749,30]
[337421546,1725658302621,-362.905688,0.00050749,30]
[337421547,1725658302630,-151.0,0.00050822,120]
[337421548,1725658302639,-1021.40551779,0.00051,120]
[337421549,1725658302649,-150.0,0.00051,90]
[337421550,1725658302658,-3000.0,0.00051,85]
[337421551,1725658302667,-3000.0,0.0005101,85]
[337421552,1725658302676,-3000.0,0.0005102,85]
[337421553,1725658302685,-3000.0,0.0005103,85]
[337421554,1725658302695,-3000.0,0.0005104,85]
[337421555,1725658302706,-3000.0,0.0005105,85]
[337421556,1725658302721,-3000.0,0.0005106,85]
[337421557,1725658302742,-3000.0,0.0005107,85]
[337421558,1725658302760,-5181.583796,0.0005108,85]
[337421559,1725658302780,-446.0,0.00051349,120]
[337421560,1725658302802,-203.545633,0.00051361,30]
[337421561,1725658302820,-362.905688,0.00051361,30]
[337421562,1725658302839,-300.0,0.000515,38]
[337421563,1725658302853,-255.2,0.000515,87]
[337421564,1725658302868,-255.199999,0.000515,87]
[337421565,1725658302886,-414.787129,0.00051513,120]
[337421566,1725658302907,-151.0,0.00051726,120]
[337421567,1725658302919,-446.0,0.00051781,120]
[337421568,1725658302936,-500.0,0.00051825,30]
[337421569,1725658302953,-241.67,0.00051958,7]
[337421570,1725658302968,-241.67,0.00051958,7]
[337421571,1725658302982,-241.67,0.00051958,7]
[337421572,1725658302997,-241.67,0.00051958,7]
[337421573,1725658303011,-152.0,0.0005196,60]
[337421574,1725658303026,-150.0,0.00052,90]
[337421575,1725658303042,-160.0,0.00052055,60]
[337421576,1725658303056,-160.0,0.00052055,60]
[337421577,1725658303070,-160.0,0.00052055,60]
[337421578,1725658303084,-160.0,0.00052055,60]
[337421579,1725658303098,-162.40426621,0.00052055,60]
[337421580,1725658303113,-250.0,0.000523,30]
[337421581,1725658303126,-1404.59,0.00052356,120]
[337421582,1725658303141,-1404.59,0.00052356,120]
[337421583,1725658303155,-1404.59,0.00052356,120]
[337421584,1725658303170,-1404.59,0.00052356,120]
[337421585,1725658303184,-1404.59,0.00052356,120]
[337421586,1725658303198,-1404.59,0.00052356,120]
[337421587,1725658303213,-1404.59,0.00052356,120]
[337421588,1725658303228,-1404.59,0.00052356,120]
[337421589,1725658303242,-1404.59,0.00052356,120]
[337421590,1725658303256,-1404.59,0.00052356,120]
[337421591,1725658303270,-1404.59,0.00052356,120]
[337421592,1725658303285,-1404.59,0.00052356,120]
[337421593,1725658303299,-1404.59,0.00052356,120]
[337421594,1725658303314,-1404.59,0.00052356,120]
[337421595,1725658303328,-1404.59,0.00052356,120]
[337421596,1725658303343,-1404.59,0.00052356,120]
[337421597,1725658303358,-1404.59,0.00052356,120]
[337421598,1725658303374,-1404.59,0.00052356,120]
[337421599,1725658303391,-1404.59,0.00052356,120]
[337421600,1725658303406,-1404.59,0.00052356,120]
[337421601,1725658303423,-1404.59,0.00052356,120]
[337421602,1725658303437,-1404.59,0.00052356,120]
[337421603,1725658303454,-1404.59,0.00052356,120]
[337421604,1725658303469,-1404.82427529,0.00052356,120]
[337421605,1725658303484,-300.0,0.000525,40]
[337421606,1725658303499,-200.0,0.000525,91]
[337421607,1725658303514,-200.0,0.000525,91]
[337421608,1725658303529,-601.78176326,0.000528,2]
[337421609,1725658303547,-200.0,0.00053,90]
[337421610,1725658303561,-1887.21446927,0.000533,120]
[337421611,1725658303576,-151.0,0.00053397,120]
[337421612,1725658303592,-151.0,0.00053425,120]
[337421613,1725658303606,-530.719593,0.00053425,120]
[337421614,1725658303621,-300.0,0.000535,42]
[337421615,1725658303635,-200.0,0.000535,94]
[337421616,1725658303650,-200.0,0.000535,94]
[337421617,1725658303665,-616.40558975,0.000538,120]